Publisher Label,Publisher URI,"Payment Date","Organisational Unit","Beneficiary Name","Amount (£)","Irrecoverable VAT Amount (£)","Purpose","Merchant Category Code"
"Wolverhampton City Council","http://opendatacommunities.org/id/metropolitan-district-council/wolverhampton","11/04/2017","Executive","O'NEILLS MARYLEBONE","5.89","-","Subsistence","5813"
"Wolverhampton City Council","http://opendatacommunities.org/id/metropolitan-district-council/wolverhampton","21/04/2017","Executive","LUL TICKET MACHINE","50.00","-","Public transport","4112"
"Wolverhampton City Council","http://opendatacommunities.org/id/metropolitan-district-council/wolverhampton","21/04/2017","Executive","DDF BARRIERLINE","5.57","-","Subsistence","5812"
"Wolverhampton City Council","http://opendatacommunities.org/id/metropolitan-district-council/wolverhampton","21/04/2017","Executive","STARBUCKS","4.80","-","Subsistence","5812"
"Wolverhampton City Council","http://opendatacommunities.org/id/metropolitan-district-council/wolverhampton","24/04/2017","Executive","RITAZZA","7.94","-","Subsistence","5813"
"Wolverhampton City Council","http://opendatacommunities.org/id/metropolitan-district-council/wolverhampton","26/04/2017","Executive","COSTA COFFEE","4.17","-","Subsistence","5813"
"Wolverhampton City Council","http://opendatacommunities.org/id/metropolitan-district-council/wolverhampton","03/07/2017","Executive","WCT Catering","5.50","-","Subsistence","5812"
"Wolverhampton City Council","http://opendatacommunities.org/id/metropolitan-district-council/wolverhampton","03/07/2017","Executive","OVERSEA CHINESE RESTAU LONDON","11.60","-","Subsistence","5812"
"Wolverhampton City Council","http://opendatacommunities.org/id/metropolitan-district-council/wolverhampton","04/07/2017","Executive","LUL TICKET MACHINE","20.00","-","Public transport","4112"
"Wolverhampton City Council","http://opendatacommunities.org/id/metropolitan-district-council/wolverhampton","04/07/2017","Executive","RITAZZA","4.75","-","Subsistence","5813"
"Wolverhampton City Council","http://opendatacommunities.org/id/metropolitan-district-council/wolverhampton","04/07/2017","Executive","RITAZZA","4.39","-","Subsistence","5813"
"Wolverhampton City Council","http://opendatacommunities.org/id/metropolitan-district-council/wolverhampton","04/07/2017","Executive","MCDONALDS","3.33","-","Subsistence","5812"
"Wolverhampton City Council","http://opendatacommunities.org/id/metropolitan-district-council/wolverhampton","10/07/2017","Executive","Pret A Manger","5.75","-","Subsistence","5812"
"Wolverhampton City Council","http://opendatacommunities.org/id/metropolitan-district-council/wolverhampton","10/07/2017","Executive","RITAZZA","9.83","-","Subsistence","5813"
"Wolverhampton City Council","http://opendatacommunities.org/id/metropolitan-district-council/wolverhampton","26/07/2017","Executive","OVERSEA CHINESE RESTAU LONDON","11.60","-","Subsistence","5812"
"Wolverhampton City Council","http://opendatacommunities.org/id/metropolitan-district-council/wolverhampton","26/07/2017","Executive","Pumpkin Caf�","1.65","-","Subsistence","5812"
"Wolverhampton City Council","http://opendatacommunities.org/id/metropolitan-district-council/wolverhampton","26/07/2017","Executive","Pumpkin Caf�","2.37","-","Subsistence","5812"
"Wolverhampton City Council","http://opendatacommunities.org/id/metropolitan-district-council/wolverhampton","07/08/2017","Executive","STARBUCKS","1.92","-","Subsistence","5812"
"Wolverhampton City Council","http://opendatacommunities.org/id/metropolitan-district-council/wolverhampton","07/08/2017","Executive","STARBUCKS","1.60","-","Subsistence","5812"
"Wolverhampton City Council","http://opendatacommunities.org/id/metropolitan-district-council/wolverhampton","11/08/2017","Executive","STARBUCKS","1.66","-","Subsistence","5812"
"Wolverhampton City Council","http://opendatacommunities.org/id/metropolitan-district-council/wolverhampton","11/08/2017","Executive","STARBUCKS","1.59","-","Subsistence","5812"
"Wolverhampton City Council","http://opendatacommunities.org/id/metropolitan-district-council/wolverhampton","14/08/2017","Executive","PP*XC TRAINS CATERING BIRMINGHAM","7.10","-","Public transport","4112"
"Wolverhampton City Council","http://opendatacommunities.org/id/metropolitan-district-council/wolverhampton","14/08/2017","Executive","PP*XC TRAINS CATERING BIRMINGHAM","3.00","-","Public transport","4112"
"Wolverhampton City Council","http://opendatacommunities.org/id/metropolitan-district-council/wolverhampton","14/08/2017","Executive","PP*XC TRAINS CATERING BIRMINGHAM","5.00","-","Public transport","4112"
"Wolverhampton City Council","http://opendatacommunities.org/id/metropolitan-district-council/wolverhampton","16/08/2017","Executive","COSTA","4.00","-","Subsistence","5812"
"Wolverhampton City Council","http://opendatacommunities.org/id/metropolitan-district-council/wolverhampton","21/08/2017","Executive","LUL TICKET MACHINE","50.00","-","Public transport","4112"
"Wolverhampton City Council","http://opendatacommunities.org/id/metropolitan-district-council/wolverhampton","21/08/2017","Executive","ED'S EASY DINER LONDON","23.00","-","Subsistence","5812"
"Wolverhampton City Council","http://opendatacommunities.org/id/metropolitan-district-council/wolverhampton","05/07/2017","Finance","JOBSITE.CO.UK","178.80","-","Staff Advertising Costs","7361"
"Wolverhampton City Council","http://opendatacommunities.org/id/metropolitan-district-council/wolverhampton","06/07/2017","Finance","VIRGIN TRAINS","112.00","-","Public transport","4112"
"Wolverhampton City Council","http://opendatacommunities.org/id/metropolitan-district-council/wolverhampton","07/07/2017","Finance","PREMIER INN LONDON","225.49","-","Accommodation costs","7011"
"Wolverhampton City Council","http://opendatacommunities.org/id/metropolitan-district-council/wolverhampton","07/07/2017","Finance","SOUTH WEST TRAINS","117.58","-","Officers Foreign Travel","4112"
"Wolverhampton City Council","http://opendatacommunities.org/id/metropolitan-district-council/wolverhampton","07/07/2017","Finance","UNITED NETHERLANDS NLD","1,222.93","-","Officers Foreign Travel","3000"
"Wolverhampton City Council","http://opendatacommunities.org/id/metropolitan-district-council/wolverhampton","07/07/2017","Finance","UNITED HOUNSLOW","274.38","-","Officers Foreign Travel","3000"
"Wolverhampton City Council","http://opendatacommunities.org/id/metropolitan-district-council/wolverhampton","07/07/2017","Finance","UNITED HOUNSLOW","71.99","-","Officers Foreign Travel","3000"
"Wolverhampton City Council","http://opendatacommunities.org/id/metropolitan-district-council/wolverhampton","07/07/2017","Finance","UNITED HOUNSLOW","206.38","-","Officers Foreign Travel","3000"
"Wolverhampton City Council","http://opendatacommunities.org/id/metropolitan-district-council/wolverhampton","07/07/2017","Finance","VIRGIN TRAINS","67.55","-","Public transport","4112"
"Wolverhampton City Council","http://opendatacommunities.org/id/metropolitan-district-council/wolverhampton","07/07/2017","Finance","VIRGIN TRAINS","35.55","-","Public transport","4112"
"Wolverhampton City Council","http://opendatacommunities.org/id/metropolitan-district-council/wolverhampton","09/07/2017","Finance","WESTIN HOUSTON DOWNTOWN","595.52","-","Accommodation costs","3513"
"Wolverhampton City Council","http://opendatacommunities.org/id/metropolitan-district-council/wolverhampton","09/07/2017","Finance","INDEED","18.46","-","Staff Advertising Costs","7361"
"Wolverhampton City Council","http://opendatacommunities.org/id/metropolitan-district-council/wolverhampton","11/07/2017","Finance","CROSS COUNTRY TRAINS","88.00","-","Public transport","4112"
"Wolverhampton City Council","http://opendatacommunities.org/id/metropolitan-district-council/wolverhampton","11/07/2017","Finance","VIRGIN TRAINS","176.00","-","Public transport","4112"
"Wolverhampton City Council","http://opendatacommunities.org/id/metropolitan-district-council/wolverhampton","11/07/2017","Finance","VIRGIN TRAINS","56.00","-","Public transport","4112"
"Wolverhampton City Council","http://opendatacommunities.org/id/metropolitan-district-council/wolverhampton","11/07/2017","Finance","WEST COAST TRAINS","114.00","-","Public transport","4112"
"Wolverhampton City Council","http://opendatacommunities.org/id/metropolitan-district-council/wolverhampton","12/07/2017","Finance","GALA HOTELS.COM","273.00","-","Accommodation costs","7011"
"Wolverhampton City Council","http://opendatacommunities.org/id/metropolitan-district-council/wolverhampton","12/07/2017","Finance","LONDON MIDLAND","97.50","-","Public transport","4112"
"Wolverhampton City Council","http://opendatacommunities.org/id/metropolitan-district-council/wolverhampton","14/07/2017","Finance","LONDON MIDLAND","56.00","-","Public transport","4112"
"Wolverhampton City Council","http://opendatacommunities.org/id/metropolitan-district-council/wolverhampton","18/07/2017","Finance","EAST MIDLANDS TRAINS","89.90","-","Public transport","4112"
"Wolverhampton City Council","http://opendatacommunities.org/id/metropolitan-district-council/wolverhampton","18/07/2017","Finance","VIRGIN TRAINS","150.00","-","Public transport","4112"
"Wolverhampton City Council","http://opendatacommunities.org/id/metropolitan-district-council/wolverhampton","18/07/2017","Finance","VIRGIN TRAINS","135.60","-","Public transport","4112"
"Wolverhampton City Council","http://opendatacommunities.org/id/metropolitan-district-council/wolverhampton","19/07/2017","Finance","VIRGIN TRAINS","133.00","-","Public transport","4112"
"Wolverhampton City Council","http://opendatacommunities.org/id/metropolitan-district-council/wolverhampton","19/07/2017","Finance","VIRGIN TRAINS","165.00","-","Public transport","4112"
"Wolverhampton City Council","http://opendatacommunities.org/id/metropolitan-district-council/wolverhampton","24/07/2017","Finance","GALA HOTELS.COM","100.00","-","Accommodation costs","7011"
"Wolverhampton City Council","http://opendatacommunities.org/id/metropolitan-district-council/wolverhampton","24/07/2017","Finance","VIRGIN TRAINS","55.10","-","Public transport","4112"
"Wolverhampton City Council","http://opendatacommunities.org/id/metropolitan-district-council/wolverhampton","24/07/2017","Finance","VIRGIN TRAINS","162.00","-","Public transport","4112"
"Wolverhampton City Council","http://opendatacommunities.org/id/metropolitan-district-council/wolverhampton","24/07/2017","Finance","VIRGIN TRAINS","91.00","-","Public transport","4112"
"Wolverhampton City Council","http://opendatacommunities.org/id/metropolitan-district-council/wolverhampton","25/07/2017","Finance","BRITANNIA","110.00","-","Accommodation costs","7011"
"Wolverhampton City Council","http://opendatacommunities.org/id/metropolitan-district-council/wolverhampton","25/07/2017","Finance","VIRGIN TRAINS","45.00","-","Public transport","4112"
"Wolverhampton City Council","http://opendatacommunities.org/id/metropolitan-district-council/wolverhampton","28/07/2017","Finance","LONDON MIDLAND","114.00","-","Public transport","4112"
"Wolverhampton City Council","http://opendatacommunities.org/id/metropolitan-district-council/wolverhampton","31/07/2017","Finance","STAFFORD BOROUGH COUNCIL STAFFORD","4.17","-","Parking Fees","9399"
"Wolverhampton City Council","http://opendatacommunities.org/id/metropolitan-district-council/wolverhampton","31/07/2017","Finance","CFAUK","240.00","-","Staff Advertising Costs","8299"
"Wolverhampton City Council","http://opendatacommunities.org/id/metropolitan-district-council/wolverhampton","31/07/2017","Finance","APMG HIGH WYCOMBRE","42.25","-","Training Expenses","8299"
"Wolverhampton City Council","http://opendatacommunities.org/id/metropolitan-district-council/wolverhampton","01/08/2017","Finance","WEST COAST TRAINS","10.00","-","Parking Fees","4112"
"Wolverhampton City Council","http://opendatacommunities.org/id/metropolitan-district-council/wolverhampton","01/08/2017","Finance","VIRGIN TRAINS","147.00","-","Public transport","4112"
"Wolverhampton City Council","http://opendatacommunities.org/id/metropolitan-district-council/wolverhampton","01/08/2017","Finance","LUL TICKET MACHINE","9.80","-","Public transport","4112"
"Wolverhampton City Council","http://opendatacommunities.org/id/metropolitan-district-council/wolverhampton","01/08/2017","Finance","INDEED","27.57","-","Staff Advertising Costs","7361"
"Wolverhampton City Council","http://opendatacommunities.org/id/metropolitan-district-council/wolverhampton","03/08/2017","Finance","BRITANNIA","(110.00)","-","Accommodation costs","7011"
"Wolverhampton City Council","http://opendatacommunities.org/id/metropolitan-district-council/wolverhampton","07/08/2017","Finance","VIRGIN TRAINS","163.00","-","Public transport","4112"
"Wolverhampton City Council","http://opendatacommunities.org/id/metropolitan-district-council/wolverhampton","08/08/2017","Finance","EVENT FURNITURE LIMITED WALSALL","312.67","-","Equipment Purchase","5021"
"Wolverhampton City Council","http://opendatacommunities.org/id/metropolitan-district-council/wolverhampton","08/08/2017","Finance","VIRGIN TRAINS","91.00","-","Public transport","4112"
"Wolverhampton City Council","http://opendatacommunities.org/id/metropolitan-district-council/wolverhampton","17/08/2017","Finance","VIRGIN TRAINS","40.00","-","Public transport","4112"
"Wolverhampton City Council","http://opendatacommunities.org/id/metropolitan-district-council/wolverhampton","17/08/2017","Finance","VIRGIN TRAINS","97.00","-","Public transport","4112"
"Wolverhampton City Council","http://opendatacommunities.org/id/metropolitan-district-council/wolverhampton","17/08/2017","Finance","THE CHILTERN RAILWAY","29.50","-","Public transport","4111"
"Wolverhampton City Council","http://opendatacommunities.org/id/metropolitan-district-council/wolverhampton","18/08/2017","Finance","Expedia","123.20","-","Accommodation costs","7011"
"Wolverhampton City Council","http://opendatacommunities.org/id/metropolitan-district-council/wolverhampton","31/08/2017","Finance","LONDON MIDLAND","28.00","-","Public transport","4112"
"Wolverhampton City Council","http://opendatacommunities.org/id/metropolitan-district-council/wolverhampton","07/06/2017","Governance","RIVERFORD.CO.UK","0.36","-","Subsistence","5499"
"Wolverhampton City Council","http://opendatacommunities.org/id/metropolitan-district-council/wolverhampton","12/06/2017","Governance","GREGGS PLC","2.25","-","Public transport","5812"
"Wolverhampton City Council","http://opendatacommunities.org/id/metropolitan-district-council/wolverhampton","12/06/2017","Governance","POUNDWORLD","0.83","-","Subsistence","5310"
"Wolverhampton City Council","http://opendatacommunities.org/id/metropolitan-district-council/wolverhampton","14/06/2017","Governance","RIVERFORD.CO.UK","0.36","-","Subsistence","5499"
"Wolverhampton City Council","http://opendatacommunities.org/id/metropolitan-district-council/wolverhampton","21/06/2017","Governance","RIVERFORD.CO.UK","0.36","-","Subsistence","5499"
"Wolverhampton City Council","http://opendatacommunities.org/id/metropolitan-district-council/wolverhampton","27/06/2017","Governance","THE MONTCALM LONDON","392.00","-","Accommodation costs","7011"
"Wolverhampton City Council","http://opendatacommunities.org/id/metropolitan-district-council/wolverhampton","28/06/2017","Governance","RIVERFORD.CO.UK","0.36","-","Subsistence","5499"
"Wolverhampton City Council","http://opendatacommunities.org/id/metropolitan-district-council/wolverhampton","04/07/2017","Governance","CARD FACTORY","1.99","-","Stationary","5947"
"Wolverhampton City Council","http://opendatacommunities.org/id/metropolitan-district-council/wolverhampton","04/07/2017","Governance","POUNDWORLD","10.00","-","Subsistence","5310"
"Wolverhampton City Council","http://opendatacommunities.org/id/metropolitan-district-council/wolverhampton","05/07/2017","Governance","RIVERFORD.CO.UK","25.81","-","Subsistence","5499"
"Wolverhampton City Council","http://opendatacommunities.org/id/metropolitan-district-council/wolverhampton","07/07/2017","Governance","ICELAND","3.89","-","Subsistence","5411"
"Wolverhampton City Council","http://opendatacommunities.org/id/metropolitan-district-council/wolverhampton","07/07/2017","Governance","GREGGS PLC","14.20","-","Subsistence","5812"
"Wolverhampton City Council","http://opendatacommunities.org/id/metropolitan-district-council/wolverhampton","12/07/2017","Governance","RIVERFORD.CO.UK","25.81","-","Subsistence","5499"
"Wolverhampton City Council","http://opendatacommunities.org/id/metropolitan-district-council/wolverhampton","14/07/2017","Governance","PREMIER INN","69.49","-","Accommodation costs","7011"
"Wolverhampton City Council","http://opendatacommunities.org/id/metropolitan-district-council/wolverhampton","14/07/2017","Governance","TIMPSON LTD WOLVERHAMPTON","12.00","-","Equipment Purchase","7251"
"Wolverhampton City Council","http://opendatacommunities.org/id/metropolitan-district-council/wolverhampton","19/07/2017","Governance","RIVERFORD.CO.UK","25.81","-","Subsistence","5499"
"Wolverhampton City Council","http://opendatacommunities.org/id/metropolitan-district-council/wolverhampton","24/07/2017","Governance","ICELAND","6.09","-","Subsistence","5411"
"Wolverhampton City Council","http://opendatacommunities.org/id/metropolitan-district-council/wolverhampton","24/07/2017","Governance","ICELAND","4.60","-","Subsistence","5411"
"Wolverhampton City Council","http://opendatacommunities.org/id/metropolitan-district-council/wolverhampton","24/07/2017","Governance","ICELAND","5.94","-","Subsistence","5411"
"Wolverhampton City Council","http://opendatacommunities.org/id/metropolitan-district-council/wolverhampton","26/07/2017","Governance","RIVERFORD.CO.UK","25.81","-","Subsistence","5499"
"Wolverhampton City Council","http://opendatacommunities.org/id/metropolitan-district-council/wolverhampton","27/07/2017","Governance","The Financial Times Limited","600.00","-","Staff Advertising Costs","5192"
"Wolverhampton City Council","http://opendatacommunities.org/id/metropolitan-district-council/wolverhampton","02/08/2017","Governance","RIVERFORD.CO.UK","25.81","-","Subsistence","5499"
"Wolverhampton City Council","http://opendatacommunities.org/id/metropolitan-district-council/wolverhampton","09/08/2017","Governance","RIVERFORD.CO.UK","25.81","-","Subsistence","5499"
"Wolverhampton City Council","http://opendatacommunities.org/id/metropolitan-district-council/wolverhampton","14/08/2017","Governance","VIRGIN TRAINS","209.00","-","Public transport","4112"
"Wolverhampton City Council","http://opendatacommunities.org/id/metropolitan-district-council/wolverhampton","14/08/2017","Governance","ICELAND","1.98","-","Subsistence","5411"
"Wolverhampton City Council","http://opendatacommunities.org/id/metropolitan-district-council/wolverhampton","16/08/2017","Governance","RIVERFORD.CO.UK","25.81","-","Subsistence","5499"
"Wolverhampton City Council","http://opendatacommunities.org/id/metropolitan-district-council/wolverhampton","18/08/2017","Governance","1&1 Internet Ltd","53.50","-","Subscriptions","4816"
"Wolverhampton City Council","http://opendatacommunities.org/id/metropolitan-district-council/wolverhampton","23/08/2017","Governance","POUNDWORLD","29.17","-","Equipment Purchase","5310"
"Wolverhampton City Council","http://opendatacommunities.org/id/metropolitan-district-council/wolverhampton","23/08/2017","Governance","WILKO","72.05","-","Equipment Purchase","5311"
"Wolverhampton City Council","http://opendatacommunities.org/id/metropolitan-district-council/wolverhampton","23/08/2017","Governance","VIRGIN TRAINS","46.55","-","Public transport","4112"
"Wolverhampton City Council","http://opendatacommunities.org/id/metropolitan-district-council/wolverhampton","23/08/2017","Governance","RIVERFORD.CO.UK","25.81","-","Subsistence","5499"
"Wolverhampton City Council","http://opendatacommunities.org/id/metropolitan-district-council/wolverhampton","25/08/2017","Governance","POUNDWORLD","10.05","-","Subsistence","5310"
"Wolverhampton City Council","http://opendatacommunities.org/id/metropolitan-district-council/wolverhampton","30/08/2017","Governance","PREMIER INN","387.00","-","Accommodation costs","7011"
"Wolverhampton City Council","http://opendatacommunities.org/id/metropolitan-district-council/wolverhampton","30/08/2017","Governance","VIRGIN TRAINS","55.10","-","Public transport","4112"
"Wolverhampton City Council","http://opendatacommunities.org/id/metropolitan-district-council/wolverhampton","30/08/2017","Governance","RIVERFORD.CO.UK","25.81","-","Subsistence","5499"
"Wolverhampton City Council","http://opendatacommunities.org/id/metropolitan-district-council/wolverhampton","05/06/2017","Investments","LUL TICKET MACHINE","20.00","-","Public transport","4112"
"Wolverhampton City Council","http://opendatacommunities.org/id/metropolitan-district-council/wolverhampton","20/06/2017","Investments","APULIA RESTAURANT","13.50","-","Subsistence","5812"
"Wolverhampton City Council","http://opendatacommunities.org/id/metropolitan-district-council/wolverhampton","21/06/2017","Investments","BIRLETS SANDWICHES OLD BROAD STR","4.50","-","Subsistence","5812"
"Wolverhampton City Council","http://opendatacommunities.org/id/metropolitan-district-council/wolverhampton","21/06/2017","Investments","CHILANGO'S LONDON","1.08","-","Subsistence","5812"
"Wolverhampton City Council","http://opendatacommunities.org/id/metropolitan-district-council/wolverhampton","21/06/2017","Investments","CAFFE NERO","3.75","-","Subsistence","5812"
"Wolverhampton City Council","http://opendatacommunities.org/id/metropolitan-district-council/wolverhampton","21/06/2017","Investments","CAFFE NERO","1.67","-","Subsistence","5812"
"Wolverhampton City Council","http://opendatacommunities.org/id/metropolitan-district-council/wolverhampton","22/06/2017","Investments","BIRLETS SANDWICHES OLD BROAD STR","5.95","-","Subsistence","5812"
"Wolverhampton City Council","http://opendatacommunities.org/id/metropolitan-district-council/wolverhampton","22/06/2017","Investments","BAGELMANIA","3.60","-","Subsistence","5812"
"Wolverhampton City Council","http://opendatacommunities.org/id/metropolitan-district-council/wolverhampton","22/06/2017","Investments","TRINACRIA FOOD","2.15","-","Subsistence","5812"
"Wolverhampton City Council","http://opendatacommunities.org/id/metropolitan-district-council/wolverhampton","22/06/2017","Investments","TRINACRIA FOOD","4.35","-","Subsistence","5812"
"Wolverhampton City Council","http://opendatacommunities.org/id/metropolitan-district-council/wolverhampton","23/06/2017","Investments","BIRLETS SANDWICHES OLD BROAD STR","5.95","-","Subsistence","5812"
"Wolverhampton City Council","http://opendatacommunities.org/id/metropolitan-district-council/wolverhampton","23/06/2017","Investments","TRINACRIA FOOD","4.35","-","Subsistence","5812"
"Wolverhampton City Council","http://opendatacommunities.org/id/metropolitan-district-council/wolverhampton","23/06/2017","Investments","TRINACRIA FOOD","2.15","-","Subsistence","5812"
"Wolverhampton City Council","http://opendatacommunities.org/id/metropolitan-district-council/wolverhampton","23/06/2017","Investments","CAFFE NERO","1.75","-","Subsistence","5812"
"Wolverhampton City Council","http://opendatacommunities.org/id/metropolitan-district-council/wolverhampton","25/06/2017","Investments","DUKE OF SUSSEX WATERLOO","10.83","-","Subsistence","5813"
"Wolverhampton City Council","http://opendatacommunities.org/id/metropolitan-district-council/wolverhampton","26/06/2017","Investments","LUL TICKET MACHINE","20.00","-","Public transport","4112"
"Wolverhampton City Council","http://opendatacommunities.org/id/metropolitan-district-council/wolverhampton","26/06/2017","Investments","CAFFE NERO","1.66","-","Subsistence","5812"
"Wolverhampton City Council","http://opendatacommunities.org/id/metropolitan-district-council/wolverhampton","26/06/2017","Investments","CAFFE NERO","1.75","-","Subsistence","5812"
"Wolverhampton City Council","http://opendatacommunities.org/id/metropolitan-district-council/wolverhampton","26/06/2017","Investments","NEDS NOODLE BAR","8.25","-","Subsistence","5812"
"Wolverhampton City Council","http://opendatacommunities.org/id/metropolitan-district-council/wolverhampton","27/06/2017","Investments","FRANCO MANCA LONDON","7.35","-","Subsistence","5812"
"Wolverhampton City Council","http://opendatacommunities.org/id/metropolitan-district-council/wolverhampton","27/06/2017","Investments","ARTIGIANO","2.46","-","Subsistence","5812"
"Wolverhampton City Council","http://opendatacommunities.org/id/metropolitan-district-council/wolverhampton","27/06/2017","Investments","QUEENS ARMS LONDON","13.00","-","Subsistence","5813"
"Wolverhampton City Council","http://opendatacommunities.org/id/metropolitan-district-council/wolverhampton","27/06/2017","Investments","IZ SAINT","1.92","-","Subsistence","5812"
"Wolverhampton City Council","http://opendatacommunities.org/id/metropolitan-district-council/wolverhampton","02/07/2017","Investments","CFAUK","240.00","-","Training Expenses","8299"
"Wolverhampton City Council","http://opendatacommunities.org/id/metropolitan-district-council/wolverhampton","06/07/2017","Investments","ECONOMIST SUBSCRIPTION LONDON","425.00","-","Subscription","5192"
"Wolverhampton City Council","http://opendatacommunities.org/id/metropolitan-district-council/wolverhampton","12/07/2017","Investments","WEST COAST TRAINS","113.60","-","Public transport","4112"
"Wolverhampton City Council","http://opendatacommunities.org/id/metropolitan-district-council/wolverhampton","12/07/2017","Investments","WEST COAST TRAINS","10.00","-","Public transport","4112"
"Wolverhampton City Council","http://opendatacommunities.org/id/metropolitan-district-council/wolverhampton","12/07/2017","Investments","WEST COAST TRAINS","10.00","-","Public transport","4112"
"Wolverhampton City Council","http://opendatacommunities.org/id/metropolitan-district-council/wolverhampton","12/07/2017","Investments","Selfserve Ticket","20.00","-","Public transport","4112"
"Wolverhampton City Council","http://opendatacommunities.org/id/metropolitan-district-council/wolverhampton","12/07/2017","Investments","COSTA COFFEE","2.00","-","Subsistence","5813"
"Wolverhampton City Council","http://opendatacommunities.org/id/metropolitan-district-council/wolverhampton","12/07/2017","Investments","COSTA COFFEE","1.15","-","Subsistence","5813"
"Wolverhampton City Council","http://opendatacommunities.org/id/metropolitan-district-council/wolverhampton","12/07/2017","Investments","EAT LTD","2.35","-","Subsistence","5812"
"Wolverhampton City Council","http://opendatacommunities.org/id/metropolitan-district-council/wolverhampton","13/07/2017","Investments","CITYFLEET/COMCAB","6.38","-","Parking Fees","7523"
"Wolverhampton City Council","http://opendatacommunities.org/id/metropolitan-district-council/wolverhampton","13/07/2017","Investments","LUL TICKET MACHINE","30.00","-","Public transport","4112"
"Wolverhampton City Council","http://opendatacommunities.org/id/metropolitan-district-council/wolverhampton","14/07/2017","Investments","WEST COAST TRAINS","20.00","-","Public transport","4112"
"Wolverhampton City Council","http://opendatacommunities.org/id/metropolitan-district-council/wolverhampton","14/07/2017","Investments","UPPER CRUST","2.33","-","Subsistence","5812"
"Wolverhampton City Council","http://opendatacommunities.org/id/metropolitan-district-council/wolverhampton","14/07/2017","Investments","UPPER CRUST","3.99","-","Subsistence","5812"
"Wolverhampton City Council","http://opendatacommunities.org/id/metropolitan-district-council/wolverhampton","17/07/2017","Investments","Caffe Nero","1.67","-","Subsistence","5812"
"Wolverhampton City Council","http://opendatacommunities.org/id/metropolitan-district-council/wolverhampton","17/07/2017","Investments","Caffe Nero","4.00","-","Subsistence","5812"
"Wolverhampton City Council","http://opendatacommunities.org/id/metropolitan-district-council/wolverhampton","19/07/2017","Investments","IZ TAXI WATFORD","12.40","-","Public transport","4121"
"Wolverhampton City Council","http://opendatacommunities.org/id/metropolitan-district-council/wolverhampton","20/07/2017","Investments","SMART CARS WATFORD","15.00","-","Public transport","4121"
"Wolverhampton City Council","http://opendatacommunities.org/id/metropolitan-district-council/wolverhampton","31/07/2017","Investments","TOSSED LONDON","7.49","-","Subsistence","5812"
"Wolverhampton City Council","http://opendatacommunities.org/id/metropolitan-district-council/wolverhampton","31/07/2017","Investments","Pret A Manger","2.99","-","Subsistence","5812"
"Wolverhampton City Council","http://opendatacommunities.org/id/metropolitan-district-council/wolverhampton","01/08/2017","Investments","ITSU Ltd","3.99","-","Subsistence","5812"
"Wolverhampton City Council","http://opendatacommunities.org/id/metropolitan-district-council/wolverhampton","01/08/2017","Investments","Pret A Manger","3.69","-","Subsistence","5812"
"Wolverhampton City Council","http://opendatacommunities.org/id/metropolitan-district-council/wolverhampton","01/08/2017","Investments","ASSENHEIMS LONDON","8.00","-","Subsistence","5812"
"Wolverhampton City Council","http://opendatacommunities.org/id/metropolitan-district-council/wolverhampton","10/08/2017","Investments","POST OFFICE","401.83","-","Subsistence","9402"
"Wolverhampton City Council","http://opendatacommunities.org/id/metropolitan-district-council/wolverhampton","11/08/2017","Investments","WEST COAST TRAINS","10.00","-","Public transport","4112"
"Wolverhampton City Council","http://opendatacommunities.org/id/metropolitan-district-council/wolverhampton","11/08/2017","Investments","WEST COAST TRAINS","10.00","-","Public transport","4112"
"Wolverhampton City Council","http://opendatacommunities.org/id/metropolitan-district-council/wolverhampton","11/08/2017","Investments","WCT CATERING","4.50","-","Subsistence","5812"
"Wolverhampton City Council","http://opendatacommunities.org/id/metropolitan-district-council/wolverhampton","11/08/2017","Investments","WCT CATERING","6.17","-","Subsistence","5812"
"Wolverhampton City Council","http://opendatacommunities.org/id/metropolitan-district-council/wolverhampton","17/08/2017","Investments","RYMAN","14.99","-","Stationary","5943"
"Wolverhampton City Council","http://opendatacommunities.org/id/metropolitan-district-council/wolverhampton","21/08/2017","Investments","Pret A Manger","6.05","-","Subsistence","5812"
"Wolverhampton City Council","http://opendatacommunities.org/id/metropolitan-district-council/wolverhampton","22/08/2017","Investments","HOLIDAY INN NEWARD","18.85","-","Subsistence","3501"
"Wolverhampton City Council","http://opendatacommunities.org/id/metropolitan-district-council/wolverhampton","24/08/2017","Investments","QUALITY INN OKLAHOMA","63.32","-","Accommodation costs","3508"
"Wolverhampton City Council","http://opendatacommunities.org/id/metropolitan-district-council/wolverhampton","25/08/2017","Investments","WESTIN HOUSTON DOWNTOWN","73.84","-","Accommodation costs","3513"
"Wolverhampton City Council","http://opendatacommunities.org/id/metropolitan-district-council/wolverhampton","26/08/2017","Investments","HILTON LONDON","22.50","-","Subsistence","7011"
"Wolverhampton City Council","http://opendatacommunities.org/id/metropolitan-district-council/wolverhampton","26/08/2017","Investments","Pret A Manger","6.25","-","Subsistence","5812"
"Wolverhampton City Council","http://opendatacommunities.org/id/metropolitan-district-council/wolverhampton","26/08/2017","Investments","STARBUCKS","4.93","-","Subsistence","5812"
"Wolverhampton City Council","http://opendatacommunities.org/id/metropolitan-district-council/wolverhampton","27/08/2017","Investments","WASABI BISHOPSGATE LONDON","5.99","-","Subsistence","5814"
"Wolverhampton City Council","http://opendatacommunities.org/id/metropolitan-district-council/wolverhampton","06/06/2017","Pensions operations","LUL TICKET MACHINE","19.60","-","Public transport","4112"
"Wolverhampton City Council","http://opendatacommunities.org/id/metropolitan-district-council/wolverhampton","15/06/2017","Pensions operations","CAFFE NERO","3.50","-","Subsistence","5812"
"Wolverhampton City Council","http://opendatacommunities.org/id/metropolitan-district-council/wolverhampton","27/06/2017","Pensions operations","Taxi Fair By Verifone","14.60","-","Public transport","4121"
"Wolverhampton City Council","http://opendatacommunities.org/id/metropolitan-district-council/wolverhampton","27/06/2017","Pensions operations","LUL TICKET MACHINE","20.00","-","Public transport","4112"
"Wolverhampton City Council","http://opendatacommunities.org/id/metropolitan-district-council/wolverhampton","01/08/2017","Pensions Operations","Caffe Nero","3.37","-","Subsistence","5812"
"Wolverhampton City Council","http://opendatacommunities.org/id/metropolitan-district-council/wolverhampton","01/08/2017","Pensions Operations","Caffe Nero","3.92","-","Subsistence","5812"
"Wolverhampton City Council","http://opendatacommunities.org/id/metropolitan-district-council/wolverhampton","07/08/2017","Pensions operations","Indigo Park Sol UK-LON internet","15.50","-","Parking Fees","7523"
